Cogmind - Beta 9.4 @@@ ROGUE MODE // 2020.03.08 @ 00:02:34 Player: eldritch Result: Destroyed by D-53 Grenadier with Mini Grenade Launcher Performance ------------- Evolutions (0) 0 Regions Visited (2) 400 Robots Destroyed (30) 150 Value Destroyed (231) 231 Prototype IDs (4) 80 Alien Tech Used (0) 0 Bonus (74) 74 TOTAL SCORE: 935 Bonus ------- Follower Combat Kills 74 Cogmind --------- Core Integrity 0/250 Matter 214/300 Energy 94/100 System Corruption 0% Temperature Cool (0) Movement Core (550) Ox10 Location -10/Mines Parts ------- > --- POWER (1) -------- (None) > --- PROPULSION (2) --- (None) > --- UTILITY (2) ------ Large Storage Unit Large Storage Unit > --- WEAPON (2) ------- (None) > --- INVENTORY (16) --- Ion Engine Light Ion Engine Light Treads Aluminum Leg Aluminum Leg Aluminum Leg Compact Wheel Compact Wheel Heat Sink Improved Heat Sink Small Storage Unit Large Matter Pod (90) Structural Scanner Core Shielding Peak State ------------ > --- POWER ------------ Ion Engine > --- PROPULSION ------- Aluminum Leg Aluminum Leg > --- UTILITY ---------- Large Storage Unit Large Storage Unit > --- WEAPON ----------- Assault Rifle Light Assault Rifle > --- INVENTORY -------- Light Ion Engine Light Treads Light Treads Wheel Compact Wheel Small Storage Unit Large Matter Pod Light Assault Rifle Light Assault Rifle Grenade Launcher [Rating: 8] Favorites ----------- Power Ion Engine Engine Ion Engine Propulsion Aluminum Leg Treads Light Treads Leg Aluminum Leg Wheel Wheel Utility Large Storage Unit Storage Large Storage Unit Weapon Assault Rifle Ballistic Gun Assault Rifle Launcher Grenade Launcher Build | -11 -10 -10 ------- Run | Scr Mat Min Slots Evolved . | . . . Power . | . . . Propulsion . | . . . Utility . | . . . Weapon . | . . . Parts Attached 19 | . 8 11 Power 2 | . 2 . Engine 2 | . 2 . Core . | . . . Reactor . | . . . Propulsion 3 | . 1 2 Treads 1 | . . 1 Leg 1 | . 1 . Wheel 1 | . . 1 Hover . | . . . Flight . | . . . Utility 3 | . 3 . Device . | . . . Storage 3 | . 3 . Processor . | . . . Hackware . | . . . Protection . | . . . Artifact . | . . . Weapon 11 | . 2 9 Energy Gun . | . . . Energy Cannon . | . . . Ballistic Gun 8 | . 2 6 Ballistic Cannon . | . . . Launcher 3 | . . 3 Special Weapon . | . . . Impact Weapon . | . . . Slashing Weapon . | . . . Piercing Weapon . | . . . Special Melee Weapon . | . . . Unidentified Prototypes . | . . . Parts Lost 9 | . . 9 Power 1 | . . 1 Propulsion 3 | . . 3 Utility . | . . . Weapon 5 | . . 5 Highest Loss Streak 7 | . . 7 Average Slot Usage (%) 99 | . 99 98 Engine 13 | . 13 14 Treads 6 | . . 13 Leg 15 | . 27 1 Wheel 6 | . . 13 Storage 28 | . 28 28 Ballistic Gun 27 | . 27 26 Naked Turns . | . . . Heaviest Build 42 | 12 40 42 Greatest Support 20 | 20 20 10 Greatest Overweight (x) 10 | . 3 10 Average Overweight (x) 2 | . . 3 Largest Inventory Capacity 16 | . 16 16 Average Capacity 15 | . 14 16 Most Carried 16 | . 13 16 Average Carried 12 | . 10 15 Final Capacity 16 | 6 16 16 Final Carried 14 | 6 13 14 Class Distribution -------------------- 100% | Mutant Dominant Class ---------------- Mutant | -10/Materials Mutant | -10/Mines Resources | -11 -10 -10 ----------- Run | Scr Mat Min Matter Collected 602 | 200 143 259 Remotely . | . . . Salvage Created 379 | . 243 136 Parts 23 | . 13 10 Haulers Intercepted 1 | . 1 . Recyclers Shooed 2 | . 2 . Parts Field Recycled . | . . . Retrieved Matter . | . . . Parts Self-Destructed . | . . . Prevented . | . . . Kills | -11 -10 -10 ------- Run | Scr Mat Min Combat Hostiles Destroyed 28 | . 8 20 Guns 11 | . 8 3 AOE 17 | . . 17 Classes Destroyed 5 | . 3 2 Worker 1 | . . 1 Hauler 1 | . 1 . Swarmer 10 | . 6 4 Grunt 3 | . 2 1 Assembled 15 | . . 15 Best Kill Streak 15 | . 3 15 Combat Bots Only 15 | . 3 15 Max Kills in Single Turn 6 | . 1 6 Gunslinging . | . . . Exploded 6 | . . 6 Melee . | . . . Uniques/NPCs Destroyed . | . . . Combat | -11 -10 -10 -------- Run | Scr Mat Min Damage Taken 1246 | . 275 971 Core 262 | . 57 205 Absorbed by Shields . | . . . Core Remaining (%) 100 | 100 . . Volleys Fired 58 | . 25 33 Largest 2 | . 2 2 Hottest 40 | . 40 40 Shots Fired 93 | . 50 43 Gun 83 | . 50 33 Cannon . | . . . Launcher 10 | . . 10 Special . | . . . Kinetic 83 | . 50 33 Thermal . | . . . Explosive 10 | . . 10 Electromagnetic . | . . . Robot Hit Streak 7 | . 4 7 Robot Miss Streak 5 | . 5 2 Penetration Max . | . . . Secondary Targets 1 | . 1 . Max Gunslinging Chain 1 | . 1 . Shots Hit Robots 51 | . 24 27 Core Hits 56 | . 16 40 Critical Hits 2 | . . 2 Critical Kills 1 | . . 1 Critical Parts Destroyed 1 | . . 1 Melee Attacks . | . . . Impact . | . . . Slashing . | . . . Piercing . | . . . Sneak Attacks . | . . . Combat Hostiles . | . . . Follow-up Attacks . | . . . Damage Inflicted 1403 | . 268 1135 Guns 472 | . 268 204 Cannons . | . . . Explosions 931 | . . 931 Melee . | . . . Ramming . | . . . Kinetic 472 | . 268 204 Thermal . | . . . Explosive 931 | . . 931 Electromagnetic . | . . . Impact . | . . . Slashing . | . . . Piercing . | . . . Highest Corruption . | . . . Average Corruption . | . . . Corruption Purged . | . . . Overload Shots . | . . . Overflow Damage 7 | . . 7 Projectiles . | . . . Explosions 7 | . . 7 Melee . | . . . Knockbacks . | . . . Impact . | . . . Kinetic . | . . . Secondary . | . . . Self-Inflicted Damage 43 | . . 43 Shots 2 | . . 2 Rammed . | . . . Targets Rammed . | . . . Kicked . | . . . Crushed . | . . . Highest Temperature 25 | . 9 25 Average Temperature 9 | . 7 10 Received Heat Transfer 232 | . 48 184 Siege Activations . | . . . Robots Corrupted . | . . . Combat Hostiles . | . . . Parts Fried . | . . . Impact Corruptions . | . . . Robots Melted . | . . . Combat Hostiles . | . . . Parts Melted . | . . . Heat Transferred . | . . . Parts Sabotaged . | . . . Parts Stolen . | . . . Parts Stripped . | . . . Power Chain Reactions . | . . . Missiles Intercepted . | . . . Alert | -11 -10 -10 ------- Run | Scr Mat Min Peak Influence 272 | . 169 272 Average Influence 72 | . 67 78 Maximum Alert Level 1 | . . 1 Low Security (%) 94 | . 100 88 Level 1 5 | . . 11 Level 2 . | . . . Level 3 . | . . . Level 4 . | . . . Level 5 . | . . . High Security . | . . . Max Security . | . . . Squads Dispatched 2 | . 2 . Investigation 1 | . 1 . Extermination . | . . . Reinforcement 1 | . 1 . Assault . | . . . Garrison . | . . . Intercept . | . . . Construction Impeded . | . . . Haulers Reinforced . | . . . Stealth | -11 -10 -10 --------- Run | Scr Mat Min Distress Signals . | . . . Communications Jammed . | . . . Distress Signals . | . . . Times Spotted 38 | . 11 27 Peak Tracking Total 11 | . 4 11 Tactical Retreats 2 | . 1 1 Traps | -11 -10 -10 ------- Run | Scr Mat Min Traps Triggered 1 | . 1 . Indirectly . | . . . Trap Hack Attempts . | . . . Triggered . | . . . Disarmed . | . . . Reprogrammed . | . . . Reused . | . . . Traps Extracted . | . . . Installed . | . . . Triggered . | . . . Machines | -11 -10 -10 ---------- Run | Scr Mat Min Machines Disabled . | . . . Max in Single Turn . | . . . Machines Sabotaged . | . . . Garrisons Compromised . | . . . Overloaded Fab Kills . | . . . Fab Network Shutdowns . | . . . Hacking | -11 -10 -10 --------- Run | Scr Mat Min Machines Accessed 5 | . 5 . Terminals 4 | . 4 . Fabricators . | . . . Repair Stations . | . . . Recycling Units 1 | . 1 . Scanalyzers . | . . . Garrison Access . | . . . Total Hacks 10 | . 10 . Successful 6 | . 6 . Failed 4 | . 4 . Catastrophic . | . . . Database Lockouts . | . . . Manual 7 | . 7 . Terminals 9 | . 9 . Fabricators . | . . . Repair Stations . | . . . Recycling Units 1 | . 1 . Scanalyzers . | . . . Garrison Access . | . . . Terminal Hacks 3 | . 3 . Prototype ID Bank 2 | . 2 . Recall Investigation 1 | . 1 . Fabricator Hacks . | . . . Repair Station Hacks . | . . . Recycling Unit Hacks . | . . . Scanalyzer . | . . . Garrison Access Hacks . | . . . Unauthorized Hacks 9 | . 9 . Terminals 2 | . 2 . Track 1 | . 1 . Botnet 1 | . 1 . Fabricators . | . . . Repair Stations . | . . . Recycling Units 1 | . 1 . Tunnel 1 | . 1 . Scanalyzers . | . . . Garrison Access . | . . . Data Cores Recovered . | . . . Used . | . . . Hacking Detections 4 | . 4 . Full Trace Events . | . . . Feedback Events . | . . . Feedback Blocked . | . . . Robot Schematics Acquired . | . . . Robots Built . | . . . Matter . | . . . Time . | . . . Total Robot Build Rating . | . . . Part Schematics Acquired . | . . . Parts Built . | . . . Matter . | . . . Time . | . . . Total Part Build Rating . | . . . Parts Repaired . | . . . Time . | . . . Parts Recycled . | . . . Recycled Matter . | . . . Retrieved Matter . | . . . Retrieved Components . | . . . Parts Scanalyzed . | . . . Part Schematics Acquired . | . . . Parts Damaged . | . . . Bothacking | -11 -10 -10 ------------ Run | Scr Mat Min Used RIF Installer . | . . . Robots Hacked . | . . . Non-combat . | . . . Combat . | . . . Robot Hacks Applied . | . . . Relay Couplers Released . | . . . Robots Rewired . | . . . Allies Hacked . | . . . Hacks Repelled . | . . . Allies | -11 -10 -10 -------- Run | Scr Mat Min Total Allies 2 | . . 2 Largest Group 2 | . . 2 Highest-Rated Group 46 | . . 46 Highest-Rated Ally 31 | . . 31 Total Orders . | . . . Ally Attacks 19 | . . 19 Total Damage 235 | . . 235 Kills 6 | . . 6 Allies Corrupted . | . . . Allies Melted . | . . . Intel | -11 -10 -10 ------- Run | Scr Mat Min Robot Analysis Total . | . . . Derelict Logs Recovered 2 | . . 2 Drone Launches . | . . . Drone Recoveries . | . . . Exploration | -11 -10 -10 ------------- Run | Scr Mat Min Turns Passed 1104 | . 598 506 Spaces Moved 648 | 1 272 375 Core 1 | . . 1 Treads . | . . . Legs 273 | 1 272 . Wheels 374 | . . 374 Hover . | . . . Flight . | . . . Fastest Speed 110 | 120 120 110 Average Speed 123 | 120 141 111 Slowest Speed 550 | 120 210 550 Overloaded Moves . | . . . Propulsion Burnouts . | . . . Robots Hopped . | . . . Cave-ins Triggered . | . . . Exploration Rate (%) 36 | 2 41 66 Regions Visited 2 Branch Regions 1 Pre-discovered Areas 2 | . 1 1 Known Exits Taken . | . . . Unknown Exits Taken 2 | 1 1 . Scrap Searched 1 | . . 1 Spaces Dug . | . . . Terrain Destroyed 75 | . . 75 Melee . | . . . Projectile . | . . . AOE 75 | . . 75 Actions | -11 -10 -10 --------- Run | Scr Mat Min Total 869 | . 437 432 Wait 128 | . 128 . Move 646 | . 271 375 Hop . | . . . Pick Up 12 | . 4 8 Fast Attach 4 | . 4 . Attach 4 | . . 4 Detach . | . . . Swap 11 | . 4 7 Drop 6 | . 1 5 Fire 58 | . 25 33 Melee . | . . . Ram . | . . . Kick . | . . . Crush . | . . . Escape Stasis . | . . . Rewire . | . . . Trap . | . . . Miscellaneous . | . . . Route ------- -11/Scrapyard -10/Materials -10/Mines (discovered 1 exit: [*Mat]) History --------- Turn | Location | Event 1 | -11/Scrapyard | Discovered new exit (range 0) 1 | -11/Scrapyard | Entered Materials 302 | -10/Materials | Build established: Mutant 510 | -10/Materials | Discovered new exit (range 13) 599 | -10/Materials | Entered Mines 659 | -10/Mines | Met a Derelict bent on vengeance 700 | -10/Mines | Learned location of Mines (-8) 780 | -10/Mines | Learned Materials stockpile data 823 | -10/Mines | Discovered new exit (range 10) 1024 | -10/Mines | Assembled infested the area 1029 | -10/Mines | Assisted by a Guerilla fighting off Assembled 1036 | -10/Mines | Core integrity fell below 50% 1074 | -10/Mines | Destroyed 15 combat bots 1098 | -10/Mines | Core integrity fell below 20% 1105 | -10/Mines | Destroyed by D-53 Grenadier with Mini Grenade Launcher Last Messages --------------- 01053_ as-25863 destroyed. 01054_ The unstable cave ceiling collapses. 01056_ K-01 Serf collects debris. 01061_ The unstable cave ceiling collapses. 01064_ K-01 Serf collects debris. 01066_ The unstable cave ceiling collapses. 01079_ U-05 Engineer builds a Wall. 01083_ K-01 Serf collects debris. 01093_ 7Q-7KH(g) destroyed. 01094_ Assault Rifle destroyed. 01094_ U-05 Engineer builds a Wall. 01096_ K-01 Serf destroyed. 01098_ U-05 Engineer builds a Wall. 01099_ Lgt. Assault Rifle destroyed. 01099_ Lgt. Treads destroyed. 01101_ Wheel destroyed. 01102_ Lgt. Assault Rifle destroyed. 01102_ Ion Engine destroyed. 01102_ U-05 Engineer builds a Wall. 01103_ Grenade Launcher destroyed. Map ----- +----------------------------------------------------+ | | | | | | | | | | | | | | | | | | | ??????????????????????????????????????? | | ??????????????????????????????????????? | | ###???#####??????##########???????????? | | ##?## ##?????# #???????????? | | ### #?????# #???????????? | | #?????# """ #???????????? | | #?????# """ #???????????? | | #??????# """ #???????????? | | #??????# #???????????? | | ## #######?# #???????????? | | ?## ### ####### #####??????????? | | ?## ## ### #####??????? | | ## ## ####???? | | #### # #???? | | # [ ####??# # ##??? | | # ! ##?????# % #??? | | ! ##??????# # @ #?? | | #% ##???????# ## = #?? | | # #####????????# u d #?? | | # =#????????????# d #?? | | # ????????????### #####t #?? | | # #?????????????# ##????#| #?? | | ## #?????????????## ## ##??????% #?? | | ?# #??????????????# #### #???????? #?? | | ?# #??????????????###??###???????? #?? | | ?# ???????????????????????????????#?? | | ?# ?????????????????????????????????? | | ?? ?????????????????????????????????? | | ?? ????????????????????????????????? | | ??# ????????????????????????????????? | | ???# ????????????????????????????????? | | ????# ????????????????????????????????? | | ????? ????????????????????????????????? | | ??????????????????????????????????????? | | ??????????????????????????????????????? | | ??????????????????????????????????????? | | ??????????????????????????????????????? | | ??????????????????????????????????????? | | ??????????????????????????????????????? | | ??????????????????????????????????????? | | ??????????????????????????????????????? | +----------------------------------------------------+ Best States ------------- Heat Dissipation 25 Energy Generation 10 Energy Capacity 250 Matter Stores 300 Matter Capacity 300 Sight Range 16 Terrain Scan Density 10 Evasion (%) 40 Recoil Reduction 1 Item Schematics ----------------- None Robot Schematics ------------------ None Fabricated ------------ Nothing Alien Tech Used ----------------- None Achievements -------------- None Challenges ------------ None Game ------ Seed SurveybotExplosivePit Manual? 0 Play Time 00:10:33 Cumulative 214.7 hours Start 2020.03.07 @ 23:55:38 End 2020.03.08 @ 00:02:34 Sessions 1 Manual Loads 0 Difficulty Rogue Special Mode None Game No. 490 Rogue 490 Adventurer 0 Explorer 0 Win Type - Total 4 Types 3/0/0/1/0/0/0 Lore% 63 Gallery% 66 Achievement% 56 Wizard Run 0 Options --------- ASCII 0 Keyboard 0 Movement Arrows Keybinds 0 Fullscreen 1 Font 16/SmallcapsGlow Map View 75x55 Tactical HUD 1 Map Filters NONE Filters NONE Steam 1 RUN: 688abdd0-e3cf-4b5f-a7d6-90ff975bb35e